bitfinex-derivatives/quotes_SOLF0:USTF0_20240815
["timestamp","ask_amount","ask_price","bid_price","bid_amount"]
[1723745050266,30.72,141.23,140.76,35.5148]
[1723745050267,30.72,141.14,140.94,28.32]
[1723745050569,30.72,141.09,140.95,30.72]
[1723745050777,30.72,141.12,140.98,30.72]
[1723745051168,30.72,141.14,141.01,30.72]
[1723745051465,30.72,141.09,140.94,28.32]
[1723745051670,59.04,141.23,141.02,30.72]
[1723745051671,1.2944,141.22,141.02,30.72]
[1723745051865,30.72,141.13,141.01,0.04727366]
[1723745052266,30.72,141.16,141.02,30.72]
[1723745052467,30.72,141.05,141.01,0.04727366]
[1723745052667,30.72,141.03,140.79,33.367]
[1723745052873,30.72,140.97,140.83,30.72]
[1723745053074,30.72,141.04,140.91,30.72]
[1723745053276,30.72,141.0,140.85,30.72]
[1723745053477,30.72,140.94,140.81,30.72]
[1723745053684,30.72,140.92,140.79,1.2842]
[1723745053881,30.72,141.08,140.8,30.72]
[1723745054182,30.72,141.08,140.73,28.34]
[1723745054183,30.72,140.95,140.83,30.72]
[1723745054385,30.72,141.09,140.74,1.3171]
[1723745054386,28.34,141.11,140.86,30.72]
[1723745054578,3.5435,141.08,140.94,30.72]
[1723745054776,30.72,140.99,140.86,30.72]
[1723745054979,30.72,140.97,140.84,1.0]
[1723745055274,30.72,141.0,140.86,30.72]
[1723745055477,30.72,140.95,140.87,1.0]
[1723745055682,30.72,140.93,140.87,1.0]
[1723745055893,30.72,140.9,140.86,0.04823028]
[1723745056082,30.72,140.98,140.86,0.04823028]
[1723745056275,30.72,140.91,140.86,0.04823028]
[1723745056577,30.72,140.97,140.86,0.04823028]
[1723745056778,30.72,141.0,140.85,30.72]
[1723745056980,0.04917708,140.92,140.74,1.3171]
[1723745057185,0.04917708,140.92,140.89,3.5483]
[1723745057379,0.04917708,140.92,140.78,30.72]
[1723745057580,0.04917708,140.92,140.75,30.72]
[1723745057581,30.72,140.9,140.75,30.72]
[1723745057880,30.72,140.93,140.78,30.72]
[1723745058080,1.2875,141.03,140.85,30.72]
[1723745058288,30.72,141.01,140.88,30.72]
[1723745058479,2.2007,141.14,140.93,30.72]
[1723745058794,30.72,141.06,140.98,3.5459]
[1723745058977,3.5435,141.09,140.91,30.72]
[1723745058978,30.72,141.04,140.91,30.72]
[1723745059194,30.72,141.09,141.0,3.5454]
[1723745059383,30.72,141.09,140.95,30.72]
[1723745059384,30.72,141.07,140.95,30.72]
[1723745059581,1.2654,141.14,140.88,30.72]
[1723745059582,30.72,141.01,140.88,30.72]
[1723745059977,0.04935647,141.05,140.95,30.72]
[1723745060283,0.04935647,141.05,141.03,0.04716631]
[1723745060489,30.72,141.08,141.03,0.04716631]
[1723745060984,30.72,141.11,141.03,0.04716631]
[1723745061187,30.72,141.14,140.99,30.72]
[1723745061582,30.72,141.19,141.04,30.72]
[1723745061779,30.72,141.17,141.08,3.5435]
[1723745061989,30.72,141.14,141.06,0.04839749]
[1723745062286,30.72,141.22,141.09,30.72]
[1723745062786,30.72,141.31,141.12,30.72]
[1723745062787,30.72,141.24,141.12,30.72]
[1723745062984,30.72,141.31,141.14,30.72]
[1723745063178,30.72,141.31,141.17,30.72]
[1723745063377,30.72,141.31,141.19,30.72]
[1723745063585,30.72,141.31,141.17,30.72]
[1723745063779,30.72,141.28,141.17,30.72]
[1723745063985,30.72,141.33,141.21,30.72]
[1723745064287,30.72,141.38,141.26,30.72]
[1723745064481,30.72,141.41,141.26,30.72]
[1723745064880,30.72,141.41,141.29,30.72]
[1723745065082,30.72,141.38,141.26,30.72]
[1723745065283,30.72,141.35,141.23,30.76958779]
[1723745065496,30.72,141.4,141.29,30.72]
[1723745065691,0.0519482,141.33,141.29,30.72]
[1723745065988,0.0519482,141.33,141.26,30.72]
[1723745066190,30.72,141.27,141.05,8.3844]
[1723745066396,30.72,141.23,141.11,30.72]
[1723745066890,30.72,141.21,141.05,1.2963]
[1723745067200,30.72,141.16,141.04,1.2626]
[1723745067382,30.72,141.3,141.11,3.5426]
[1723745067585,30.72,141.19,141.07,30.72]
[1723745067782,0.0492144,141.18,141.16,0.05141771]
[1723745068588,30.72,141.25,141.12,30.72]
[1723745069395,30.72,141.25,141.08,30.72]
[1723745069396,30.72,141.35,141.22,30.72]
[1723745069587,7.39317866,141.49,141.27,30.72]
[1723745069892,30.72,141.52,141.23,30.72]
[1723745069893,30.72,141.42,141.29,30.72]
[1723745070197,30.72,141.4,141.27,30.72]
[1723745070489,0.04507886,141.38,141.3,3.538]
[1723745070695,30.72,141.35,141.24,1.2463]
[1723745070885,0.04507886,141.38,141.24,1.2463]
[1723745070886,0.04507886,141.38,141.27,30.72]
[1723745071085,0.04507886,141.38,141.3,30.72]
[1723745071493,0.04507886,141.38,141.33,30.72]
[1723745071690,30.72,141.54,141.37,61.44]
[1723745071990,30.72,141.54,141.41,30.72]
[1723745072187,7.054,141.75,141.44,30.72]
[1723745072389,30.72,141.54,141.42,30.72]
[1723745072593,30.72,141.54,141.36,28.32]
[1723745072594,3.5342,141.46,141.36,28.32]
[1723745072787,30.72,141.45,141.31,30.72]
[1723745073090,30.72,141.45,141.36,3.5365]
[1723745073390,30.72,141.47,141.34,30.72]
[1723745073595,30.72,141.47,141.37,3.536]
[1723745073793,30.72,141.45,141.4,0.04561816]
[1723745074095,30.72,141.42,141.4,0.04561816]
[1723745074395,0.05272416,141.49,141.4,0.04561816]
[1723745074396,30.72,141.47,141.4,0.04561816]
[1723745074592,30.72,141.45,141.4,0.04561816]
[1723745075089,30.72,141.52,141.38,30.72]
[1723745075289,30.72,141.5,141.38,30.72]
[1723745075484,30.72,141.47,141.33,30.72]
[1723745075684,30.72,141.4,141.27,30.72]
[1723745075984,30.72,141.52,141.34,30.72]
[1723745075985,0.04626625,141.44,141.34,30.72]
[1723745076187,0.04626625,141.44,141.37,30.72]
[1723745076505,30.72,141.42,141.41,0.05353832]
[1723745076693,30.72,141.42,141.25,31.9786]
[1723745076995,30.72,141.52,141.25,30.72]
[1723745077192,30.72,141.45,141.33,30.72]
[1723745077390,30.72,141.48,141.35,30.72]
[1723745077694,30.72,141.52,141.3,30.72]
[1723745077695,30.72,141.5,141.37,30.72]
[1723745078093,30.72,141.56,141.42,30.72]
[1723745078294,30.72,141.56,141.48,3.5333]
[1723745078494,28.28,141.63,141.37,34.32561581]
[1723745078495,30.72,141.59,141.47,30.72]
[1723745078792,30.72,141.61,141.4,0.04758127]
[1723745078995,30.72,141.59,141.45,30.72]
[1723745079201,30.72,141.57,141.45,30.72]
[1723745079392,30.77417672,141.54,141.43,30.72]
[1723745079695,30.77417672,141.54,141.4,30.72]
[1723745080197,30.72,141.56,141.5,0.04498569]
[1723745080594,30.72,141.54,141.5,0.04498569]
[1723745080796,30.72,141.54,141.38,1.2611]
[1723745080797,30.72,141.54,141.4,30.72]
[1723745081003,0.04610005,141.48,141.4,30.72]
[1723745081298,30.72,141.52,141.38,1.2611]
[1723745081495,30.72,141.45,141.35,28.28]
[1723745081689,30.72,141.59,141.3,30.72]
[1723745081690,30.72,141.43,141.3,30.72]
[1723745081997,30.72,141.52,141.38,30.72]
[1723745082189,30.72,141.52,141.43,0.04808263]
[1723745082393,0.04927646,141.46,141.43,0.04808263]
[1723745082791,30.76927646,141.46,141.43,0.04808263]
[1723745082991,30.72,141.46,141.32,30.72]
[1723745083192,30.72,141.41,141.27,31.9988]
[1723745083397,30.72,141.44,141.3,30.72]
[1723745083597,30.72,141.46,141.33,30.72]
[1723745083995,30.77330495,141.46,141.43,0.04826468]
[1723745084191,3.5344,141.45,141.43,0.04826468]
[1723745084389,30.77330495,141.46,141.43,0.04826468]
[1723745084795,30.72,141.49,141.36,30.72]
[1723745085502,30.72,141.45,141.43,0.04878686]
[1723745086397,0.0488673,141.46,141.41,3.535]
[1723745086605,0.0488673,141.46,141.35,30.72]
[1723745087001,0.0488673,141.46,141.38,30.72]
[1723745087196,0.0488673,141.46,141.43,0.05287451]
[1723745087399,30.72,141.49,141.43,0.05287451]
[1723745088104,0.04658381,141.46,141.35,30.72]
[1723745088403,0.04658381,141.46,141.33,30.72]
[1723745088601,0.04658381,141.46,141.45,0.05203158]
[1723745088804,30.72,141.46,141.27,1.2788]
[1723745088999,30.72,141.43,141.3,30.72]
[1723745089196,30.72,141.46,141.32,30.72]
[1723745089403,0.05233296,141.47,141.32,30.72]
[1723745089711,0.05233296,141.47,141.35,30.72]
[1723745090000,30.72,141.48,141.35,30.72]
[1723745090400,30.72,141.48,141.38,0.04800399]
[1723745090602,30.72,141.43,141.38,0.04800399]
[1723745090798,30.72,141.39,141.38,0.04800399]
[1723745091203,30.72,141.39,141.24,30.72]
[1723745091809,30.72,141.31,141.21,1.3249]
[1723745092400,30.72,141.39,141.27,30.72]
[1723745092600,30.72,141.34,141.22,32.0647]
[1723745092804,30.72,141.34,141.22,1.3447]
[1723745093112,30.72,141.36,141.25,0.04482315]
[1723745093113,0.05054322,141.28,141.25,0.04482315]
[1723745093303,30.72,141.39,141.26,30.72]
[1723745093502,2.1657,141.56,141.29,30.72]
[1723745093701,3.536,141.39,141.29,30.72]
[1723745093904,30.72,141.42,141.29,30.72]
[1723745094102,30.72,141.46,141.33,30.72]
[1723745094604,7.0621,141.58,141.31,30.72]
[1723745094605,30.72,141.51,141.38,30.72]
[1723745094805,30.72,141.49,141.36,30.72]
[1723745095006,30.72,141.52,141.39,30.72]
[1723745095209,0.05117982,141.41,141.39,30.72]
[1723745095403,30.72,141.54,141.39,30.72]
[1723745095608,30.72,141.54,141.43,30.72]
[1723745095908,3.5324,141.53,141.45,3.5341]
[1723745096109,30.72,141.52,141.38,1.372]
[1723745096304,30.72,141.54,141.42,30.72]
[1723745096505,30.72,141.57,141.44,30.72]
[1723745096704,30.72,141.55,141.42,30.72]
[1723745097108,0.0473985,141.46,141.45,3.5342]
[1723745097409,30.72,141.58,141.45,30.72]
[1723745097711,30.72,141.6,141.45,30.72]
[1723745097906,3.4664,141.69,141.45,30.72]
[1723745098209,30.72,141.62,141.47,30.72]
[1723745098411,30.72,141.62,141.49,30.72]
[1723745098602,30.72,141.6,141.47,30.72]
[1723745098807,30.72,141.57,141.45,1.29]
[1723745099007,30.72,141.62,141.49,30.72]
[1723745099712,0.04918435,141.56,141.53,0.04860006]
[1723745100704,34.252,141.54,141.53,0.04860006]
[1723745100904,30.72,141.54,141.39,1.3305]
[1723745101115,30.72,141.59,141.39,1.3305]
[1723745101116,30.72,141.53,141.41,30.72]
[1723745101410,30.72,141.56,141.43,30.72]
[1723745101804,30.72,141.58,141.43,30.72]
[1723745102011,30.72,141.58,141.45,30.72]
[1723745102213,30.72,141.63,141.48,30.72]
[1723745102513,0.05022207,141.51,141.48,0.04907005]
[1723745102924,30.72,141.5,141.48,0.04907005]
[1723745103119,30.72,141.5,141.38,1.372]
[1723745103412,30.72,141.43,141.3,33.4435]
[1723745103614,30.72,141.45,141.33,30.72]
[1723745103918,30.72,141.48,141.35,30.72]
[1723745104421,30.72,141.5,141.37,30.72]
[1723745104717,30.72,141.45,141.32,33.85328119]
[1723745104909,0.04472107,141.43,141.42,3.535]
[1723745105109,0.04472107,141.43,141.4,0.05358558]
[1723745105410,30.72,141.52,141.4,30.77358558]
[1723745105723,30.72,141.52,141.4,0.05358558]
[1723745105724,30.72,141.43,141.4,0.05358558]
[1723745106011,34.2555,141.41,141.32,3.5374]
[1723745106215,30.72,141.41,141.3,2.7235]
[1723745106408,34.256,141.38,141.3,6.2613]
[1723745106612,34.256,141.38,141.27,37.65984358]
[1723745106613,30.72,141.36,141.27,28.26]
[1723745106922,30.72,141.33,141.27,28.26]
[1723745107415,30.72,141.31,141.27,28.26]
[1723745108025,30.72,141.28,141.13,33.85328119]
[1723745108323,30.72,141.3,141.15,30.72]
[1723745108520,30.72,141.32,141.29,0.0500881]
[1723745108819,30.72,141.3,141.1,2.5075]
[1723745109012,30.72,141.24,141.1,2.5075]
[1723745109214,30.72,141.24,141.11,30.72]
[1723745109413,30.72,141.28,141.14,30.72]
[1723745109613,0.04496534,141.24,141.16,30.72]
[1723745109818,30.72,141.33,141.15,30.72]
[1723745110017,30.72,141.33,141.18,30.72]
[1723745110519,30.72,141.33,141.12,9.39984358]
[1723745110520,30.72,141.3,141.16,33.85328119]
[1723745110727,30.72,141.28,141.2,0.05405309]
[1723745110922,30.72,141.3,141.2,0.05405309]
[1723745111134,30.72,141.32,141.2,0.05405309]
[1723745111315,30.72,141.32,141.21,30.72]
[1723745111516,30.72,141.3,141.2,0.05405309]
[1723745111713,0.05433415,141.25,141.14,30.72]
[1723745111918,0.05433415,141.25,141.16,30.72]
[1723745112121,0.05433415,141.25,141.19,30.72]
[1723745112322,30.72,141.34,141.21,30.72]
[1723745112618,30.72,141.29,141.24,0.04491285]
[1723745113716,30.72,141.29,141.17,30.72]
[1723745113912,30.72,141.38,141.25,3.5392]
[1723745113913,30.72,141.31,141.25,3.5392]
[1723745114120,30.72,141.28,141.16,30.72]
[1723745114318,30.72,141.28,141.12,1.2488]
[1723745114319,30.72,141.26,141.13,30.72]
[1723745114515,0.05050964,141.28,141.12,1.2488]
[1723745114516,30.72,141.23,141.12,1.2488]
[1723745114822,30.72,141.23,141.1,33.2275]
[1723745115014,30.77050964,141.28,141.17,30.72]
[1723745115215,0.05050964,141.28,141.17,30.72]
[1723745115420,34.2585,141.28,141.19,3.5407]
[1723745115624,30.72,141.28,141.15,30.72]
[1723745115836,30.72,141.31,141.17,30.72]
[1723745116322,0.05366853,141.24,141.17,30.72]
[1723745116512,0.05366853,141.24,141.18,3.5408]
[1723745116712,0.05366853,141.24,141.16,0.04620346]
[1723745116916,0.05366853,141.24,141.16,30.72]
[1723745117420,30.72,141.31,141.19,0.04901001]
[1723745117616,30.72,141.24,141.19,0.04901001]
[1723745118121,3.5408,141.19,141.1,2.5075]
[1723745118327,30.72,141.19,141.1,2.5075]
[1723745118623,30.72,141.19,141.1,1.2529]
[1723745118818,30.72,141.14,140.99,59.0]
[1723745119014,30.72,141.12,140.99,30.72]
[1723745119214,30.72,141.14,141.01,30.72]
[1723745119416,0.05433293,141.16,141.08,30.72]
[1723745120020,30.72,141.22,141.08,30.72]
[1723745120225,30.72,141.17,141.07,0.05407289]
[1723745120417,30.72,141.15,141.07,0.05407289]
[1723745120823,7.0749,141.33,141.09,30.72]
[1723745121021,28.3,141.5,141.14,30.72]
[1723745121322,53.1506,141.38,141.1,1.2644]
[1723745121522,30.72,141.25,141.11,30.72]
[1723745121722,30.72,141.25,141.12,3.5634333]
[1723745121918,30.72,141.27,141.14,30.72]
[1723745122323,30.72,141.32,141.19,30.72]
[1723745122826,3.5375,141.32,141.28,0.04731902]
[1723745123026,30.72,141.29,141.28,0.04731902]
[1723745123229,30.72,141.32,141.28,0.04731902]
[1723745124022,34.2576,141.32,141.17,30.72]
[1723745124222,30.72,141.37,141.22,30.72]
[1723745124421,30.72,141.37,141.24,30.72]
[1723745124635,30.72,141.37,141.23,30.72]
[1723745124937,0.04872791,141.31,141.23,30.72]
[1723745125122,0.04872791,141.31,141.29,0.04696292]
[1723745125431,30.72,141.42,141.29,30.76696292]
[1723745125625,30.72,141.4,141.29,0.04696292]
[1723745125823,30.72,141.35,141.24,1.3436]
[1723745126023,30.72,141.4,141.24,1.3436]
[1723745126220,30.72,141.45,141.31,30.72]
[1723745126425,30.72,141.48,141.33,30.72]
[1723745126625,30.72,141.51,141.36,30.72]
[1723745126940,30.72,141.48,141.36,30.72]
[1723745127130,3.5333,141.49,141.38,30.72]
[1723745127330,30.72,141.51,141.38,30.72]
[1723745127525,30.72,141.53,141.38,32.0636]
[1723745127829,30.72,141.55,141.43,30.72]
[1723745128127,1.3344,141.66,141.46,3.5339]
[1723745128128,3.5317,141.56,141.46,3.5339]
[1723745128335,30.72,141.58,141.43,30.72]
[1723745128627,30.72,141.58,141.46,30.72]
[1723745128823,30.72,141.6,141.48,30.72]
[1723745129052,0.05297087,141.5,141.48,0.04802631]
[1723745129237,30.72,141.57,141.48,0.04802631]
[1723745129925,30.72,141.5,141.39,28.3]
[1723745130130,30.72,141.48,141.39,28.3]
[1723745130534,30.72,141.43,141.38,1.3436]
[1723745130731,30.72,141.43,141.34,3.5368]
[1723745131030,30.72,141.45,141.32,31.9955]
[1723745131224,0.04864668,141.45,141.42,0.04506762]
[1723745131424,30.72,141.43,141.42,0.04506762]
[1723745131625,30.76864668,141.45,141.42,0.04506762]
[1723745131826,30.72,141.43,141.31,1.3319]
[1723745132026,30.76864668,141.45,141.31,1.3319]
[1723745132027,30.72,141.39,141.31,1.3319]
[1723745132427,30.72,141.34,141.23,1.2879]
[1723745132833,30.72,141.31,141.19,30.72]
[1723745133029,30.72,141.38,141.22,30.72]
[1723745133431,3.5365,141.36,141.24,30.72]
[1723745133631,30.72,141.38,141.24,30.72]
[1723745133833,28.93763192,141.85,141.24,30.72]
[1723745133834,0.05077648,141.3,141.29,30.72]
[1723745134131,30.72,141.46,141.29,30.72]
[1723745134430,30.72,141.48,141.33,30.72]
[1723745134635,30.72,141.48,141.36,30.72]
[1723745135034,3.5338,141.47,141.36,30.72]
[1723745135231,30.72,141.48,141.36,30.72]
[1723745135441,30.72,141.53,141.38,30.72]
[1723745135641,30.72,141.46,141.31,1.2879]
[1723745135938,30.72,141.41,141.31,1.2879]
[1723745136241,3.5351,141.42,141.41,0.04558502]
[1723745136538,0.05292181,141.43,141.16,28.26]
[1723745136735,30.72,141.38,141.2,33.323]
[1723745136945,30.72,141.38,141.26,30.72]
[1723745137238,30.72,141.43,141.31,30.72]
[1723745137432,30.72,141.43,141.24,3.47278479]
[1723745137433,30.72,141.41,141.28,30.72]
[1723745137634,34.2554,141.41,141.32,3.5372]
[1723745137840,30.72,141.41,141.28,30.72]
[1723745138034,30.72,141.43,141.31,30.72]
[1723745138239,0.05116668,141.38,141.36,0.05180901]
[1723745138434,30.72,141.48,141.36,30.77180901]
[1723745138636,30.72,141.44,141.36,0.05180901]
[1723745138843,3.5349,141.43,141.36,0.05180901]
[1723745139038,30.72,141.44,141.36,0.05180901]
[1723745139239,30.72,141.39,141.25,30.72]
[1723745139448,30.72,141.44,141.3,30.72]
[1723745139638,30.72,141.47,141.33,30.72]
[1723745139839,30.72,141.52,141.3,30.72]
[1723745139840,30.72,141.44,141.3,30.72]
[1723745140043,0.05356738,141.33,141.31,0.0463812]
[1723745140236,30.72,141.52,141.31,0.0463812]
[1723745140237,30.72,141.46,141.32,30.72]
[1723745140432,30.72,141.52,141.35,30.72]
[1723745140639,9.6333,141.58,141.37,30.72]
[1723745140640,30.72,141.51,141.37,30.72]
[1723745140850,3.5338,141.46,141.37,30.72]
[1723745141037,30.72,141.44,141.34,1.2454]
[1723745141337,3.5333,141.48,141.36,30.72]
[1723745141540,30.72,141.52,141.41,30.72]
[1723745141736,30.72,141.57,141.44,30.72]
[1723745142140,30.72,141.59,141.46,30.72]
[1723745142541,34.2506,141.59,141.5,3.5325]
[1723745142843,0.04779588,141.52,141.49,30.72]
[1723745143150,0.04779588,141.52,141.47,30.72]
[1723745143342,30.72,141.61,141.47,30.72]
[1723745143738,30.72,141.61,141.53,0.05063457]
[1723745143942,30.72,141.63,141.53,0.05063457]
[1723745144254,30.72,141.69,141.54,30.72]
[1723745144450,30.72,141.64,141.53,0.05063457]
[1723745144639,30.72,141.59,141.53,0.05063457]
[1723745145040,30.72,141.61,141.53,0.05063457]
[1723745145452,30.72,141.56,141.53,0.05063457]
[1723745145748,30.72,141.54,141.43,1.3513]
[1723745145948,30.72,141.54,141.43,32.0713]
[1723745146142,3.5314,141.56,141.46,34.2537]
[1723745146340,0.05250209,141.63,141.48,30.72]
[1723745146341,30.72,141.61,141.48,30.72]
[1723745146544,0.05250209,141.63,141.53,0.04793432]
[1723745146744,3.5304,141.6,141.53,0.04793432]
[1723745146954,30.72,141.64,141.53,0.04793432]
[1723745147148,30.72,141.67,141.53,0.04793432]
[1723745147449,30.72,141.67,141.53,30.76793432]
[1723745147647,30.72,141.67,141.55,30.72]
[1723745147845,3.5286,141.67,141.55,30.72]
[1723745148048,30.72,141.71,141.57,30.72]
[1723745148272,30.72,141.74,141.6,30.72]
[1723745148446,30.72,141.69,141.59,0.04801419]
[1723745148648,30.72,141.64,141.59,0.04801419]
[1723745148945,30.72,141.74,141.59,0.04801419]
[1723745148946,3.5291,141.65,141.59,0.04801419]
[1723745149143,30.72,141.67,141.59,0.04801419]
[1723745149344,30.72,141.64,141.52,30.72]
[1723745149546,30.72,141.62,141.51,28.24]
[1723745149849,30.72,141.59,141.51,28.24]
[1723745150047,30.72,141.61,141.51,31.7723]
[1723745150251,30.72,141.74,141.51,58.96]
[1723745150446,62.4179947,141.81,141.51,58.96]
[1723745150447,30.72,141.71,141.58,30.72]
[1723745150747,30.72,141.65,141.54,0.05021759]
[1723745150945,30.72,141.58,141.54,0.05021759]
[1723745151142,30.72,141.61,141.54,0.05021759]
[1723745151342,30.72,141.67,141.54,0.05021759]
[1723745151343,30.72,141.63,141.54,0.05021759]
[1723745151745,30.72,141.65,141.54,3.5316]
[1723745151944,30.72,141.61,141.48,32.0304]
[1723745152144,30.72,141.65,141.5,30.72]
[1723745152547,30.72,141.65,141.57,0.05426717]
[1723745153147,30.72,141.61,141.57,0.05426717]
[1723745153341,30.72,141.59,141.57,0.05426717]
[1723745153847,30.72,141.59,141.48,1.3104]
[1723745154053,30.72,141.61,141.48,35.62456766]
[1723745154253,0.05077472,141.55,141.53,3.5318]
[1723745154548,0.05077472,141.55,141.5,30.72]
[1723745154750,1.22077472,141.55,141.53,3.532]
[1723745154948,30.72,141.65,141.5,30.72]
[1723745155153,30.72,141.65,141.53,30.72]
[1723745155347,30.72,141.65,141.51,0.05096908]
[1723745155547,0.04463436,141.55,141.53,30.72]
[1723745155748,30.72,141.65,141.53,30.72]
[1723745155948,30.72,141.65,141.48,4.88832683]
[1723745155949,30.72,141.7,141.55,30.72]
[1723745156360,30.72,141.68,141.51,30.72]
[1723745157242,30.72,141.65,141.51,30.72]
[1723745157447,3.5305,141.59,141.58,0.0500134]
[1723745157859,30.72,141.59,141.48,29.5504]
[1723745158251,30.74697537,141.61,141.48,29.5504]
[1723745158445,1.0891,141.72,141.48,29.5504]
[1723745158446,7.0582,141.65,141.48,29.5504]
[1723745158651,1.3057,141.66,141.48,28.24]
[1723745158847,30.72,141.53,141.4,30.72]
[1723745159050,30.72,141.48,141.39,1.2412]
[1723745159258,1.0,141.64,141.39,1.2412]
[1723745159458,30.72,141.52,141.39,1.2412]
[1723745159648,30.72,141.5,141.39,1.2412]
[1723745159852,30.72,141.47,141.33,30.72]
[1723745160167,30.72,141.48,141.35,30.72]
[1723745160559,30.72,141.45,141.33,30.72]
[1723745160857,7.0645,141.52,141.31,1.3517]
[1723745161053,30.72,141.46,141.33,30.72]
[1723745161254,30.72,141.46,141.39,0.05363861]
[1723745161451,30.72,141.41,141.39,0.05363861]
[1723745161651,30.72,141.41,141.23,30.72]
[1723745161854,30.72,141.43,141.17,28.24]
[1723745161855,30.72,141.34,141.21,30.72]
[1723745162048,3.5368,141.34,141.27,3.5383]
[1723745162250,30.72,141.37,141.24,30.72]
[1723745162455,30.72,141.32,141.17,30.72]
[1723745162859,7.12267606,141.41,141.22,30.72]
[1723745162860,30.72,141.34,141.22,30.72]
[1723745163058,30.72,141.4,141.27,30.72]
[1723745163258,29.5966,141.42,141.27,30.72]
[1723745163455,30.72,141.35,141.2,30.72]
[1723745163663,3.537,141.33,141.25,3.539]
[1723745163861,3.537,141.33,141.23,30.76979781]
[1723745163862,1.0,141.41,141.28,30.72]
[1723745164060,1.0,141.41,141.3,30.72]
[1723745164265,30.72,141.44,141.3,30.72]
[1723745164464,30.72,141.41,141.28,30.72]
[1723745164663,30.72,141.44,141.3,30.72]
[1723745165067,0.05027322,141.37,141.3,30.72]
[1723745165368,30.72,141.52,141.36,0.05161248]
[1723745165567,30.72,141.55,141.42,30.72]
[1723745165769,30.72,141.55,141.4,30.72]
[1723745166068,30.72,141.59,141.31,2.5784]
[1723745166069,30.72,141.54,141.42,30.72]
[1723745166260,3.5332,141.49,141.41,3.5349]
[1723745166460,30.72,141.54,141.42,30.72]
[1723745166664,30.72,141.59,141.45,30.72]
[1723745167068,30.72,141.59,141.48,30.72]
[1723745167369,30.72,141.52,141.44,0.04495495]
[1723745167765,30.72,141.49,141.44,0.04495495]
[1723745167965,30.72,141.49,141.37,30.72]
[1723745168159,30.72,141.51,141.37,30.72]
[1723745168371,30.72,141.47,141.32,30.72]
[1723745168582,30.72,141.47,141.45,0.04551306]
[1723745168768,3.5353,141.4,141.32,30.72]
[1723745168965,30.72,141.47,141.32,30.72]
[1723745169166,0.05345525,141.41,141.32,30.72]
[1723745169478,0.05345525,141.41,141.3,30.72]
[1723745169661,0.05345525,141.41,141.32,30.72]
[1723745169969,1.3054,141.5,141.37,30.72]
[1723745169970,30.72,141.49,141.37,30.72]